[Event "FIDE Grand Swiss 2023"]
[Site "Villa Marina, Douglas, Isle of Man"]
[Date "2023.11.03"]
[Round "9.14"]
[White "Rapport, Richard"]
[Black "Ter-Sahakyan, Samvel"]
[Result "0-1"]
[WhiteElo "2752"]
[BlackElo "2618"]
[EventDate "2023.10.25"]
[ECO "B50"]
[PlyCount "94"]
[BlackClock "00:22:32"]
[BlackFideId "13302531"]
[TimeControl "40/100 + 20/50 + 15 + 30s/move"]
[WhiteClock "00:40:06"]
[WhiteFideId "738590"]

1.e4 {[%clk 01:39:27][%emt 00:01:30]} 1...c5 {[%clk 01:40:50][%emt 00:00:12]} 
2.Nf3 {[%clk 01:37:49][%emt 00:02:07]} 2...d6 {[%clk 01:41:11][%emt 00:00:10]} 
3.Bc4 {[%clk 01:37:47][%emt 00:00:32]} 3...Nf6 {[%clk 01:41:32][%emt 00:00:10]} 
4.d3 {[%clk 01:38:11][%emt 00:00:04]} 4...e6 {[%clk 01:41:42][%emt 00:00:22]} 
5.O-O {[%clk 01:38:16][%emt 00:00:24]} 5...Be7 {[%clk 01:41:53][%emt 00:00:19]} 
6.Nbd2 {[%clk 01:38:30][%emt 00:00:15]} 6...Nc6 {[%clk 01:39:14][%emt 00:03:11]} 
7.a4 {[%clk 01:37:06][%emt 00:01:54]} 7...O-O {[%clk 01:36:42][%emt 00:03:01]} 
8.Re1 {[%clk 01:37:07][%emt 00:00:29]} 8...a6 {[%clk 01:34:57][%emt 00:02:16]} 
9.c3 {[%clk 01:35:36][%emt 00:02:00]} 9...Rb8 {[%clk 01:23:04][%emt 00:12:23]} 
10.Ba2 {[%clk 01:33:48][%emt 00:02:17]} 10...d5 {[%clk 01:22:42][%emt 00:00:54]} 
11.e5 {[%clk 01:30:19][%emt 00:03:59]} 11...Nd7 {[%clk 01:22:58][%emt 00:00:14]} 
12.d4 {[%clk 01:27:56][%emt 00:02:52]} 12...b5 {[%clk 01:23:03][%emt 00:00:26]} 
13.axb5 {[%emt 00:06:58]} 13...axb5 {[%clk 01:23:28][%emt 00:00:02]} 14.Bb1 
{[%clk 01:21:29][%emt 00:00:31]} 14...g6 {[%clk 00:56:55][%emt 00:27:04]} 
15.Nf1 {[%clk 01:16:01][%emt 00:05:57]} 15...b4 {[%clk 00:56:41][%emt 00:00:44]} 
16.Ng3 {[%clk 01:07:08][%emt 00:09:23]} 16...Re8 {[%clk 00:46:44][%emt
00:10:27]} 17.Bf4 {[%clk 00:55:43][%emt 00:11:54]} 17...bxc3 {[%clk
00:38:28][%emt 00:08:47]} 18.bxc3 {[%clk 00:56:10][%emt 00:00:02]} 18...cxd4 
{[%clk 00:38:48][%emt 00:00:11]} 19.cxd4 {[%clk 00:54:12][%emt 00:02:29]} 
19...Rb4 {[%clk 00:39:14][%emt 00:00:04]} 20.Ne2 {[%clk 00:52:10][%emt
00:02:31]} 20...Qb6 {[%clk 00:32:39][%emt 00:07:05]} 21.Bd3 {[%clk
00:49:46][%emt 00:02:54]} 21...Bb7 {[%clk 00:27:08][%emt 00:06:01]} 22.h4 
{[%clk 00:46:35][%emt 00:03:41]} 22...Ra8 {[%clk 00:21:55][%emt 00:05:43]} 
23.Rxa8+ {[%clk 00:35:56][%emt 00:11:09]} 23...Bxa8 {[%clk 00:22:24]} 24.Bc1 
{[%clk 00:35:44][%emt 00:00:41]} 24...Bb7 {[%clk 00:15:10][%emt 00:07:45]} 
25.Ba3 {[%clk 00:35:31][%emt 00:00:43]} 25...Rb3 {[%clk 00:15:34][%emt
00:00:06]} 26.Bxe7 {[%clk 00:35:50][%emt 00:00:11]} 26...Nxe7 {[%clk
00:16:02][%emt 00:00:02]} 27.h5 {[%clk 00:33:24][%emt 00:02:56]} 27...Qb4 
{[%clk 00:10:42][%emt 00:05:50]} 28.Qc2 {[%clk 00:32:43][%emt 00:01:11]} 
28...Bc6 {[%clk 00:10:19][%emt 00:00:54]} 29.Ra1 {[%clk 00:32:31][%emt
00:00:42]} 29...Ra3 {[%clk 00:09:54][%emt 00:00:54]} 30.Rb1 {[%clk
00:26:01][%emt 00:06:59]} 30...Qa5 {[%clk 00:09:43][%emt 00:00:42]} 31.Nf4 
{[%clk 00:22:45][%emt 00:03:46]} 31...Qc3 {[%clk 00:07:42][%emt 00:02:30]} 
32.Qd1 {[%clk 00:22:41][%emt 00:00:34]} 32...Ba4 {[%clk 00:07:26][%emt
00:00:47]} 33.Qf1 {[%clk 00:21:32][%emt 00:01:39]} 33...Nc6 {[%clk
00:06:36][%emt 00:01:20]} 34.hxg6 {[%clk 00:09:40][%emt 00:12:22]} 34...hxg6 
{[%clk 00:07:02][%emt 00:00:04]} 35.g3 {[%clk 00:09:55][%emt 00:00:16]} 
35...Nxd4 {[%clk 00:03:44][%emt 00:03:48]} 36.Ng5 {[%clk 00:10:13][%emt
00:00:11]} 36...Nf8 {[%clk 00:02:02][%emt 00:02:12]} 37.Rc1 {[%clk
00:07:53][%emt 00:02:51]} 37...Bc2 {[%clk 00:02:06][%emt 00:00:25]} 38.Bxc2 
{[%clk 00:05:19][%emt 00:03:04]} 38...Nxc2 {[%clk 00:02:32][%emt 00:00:04]} 
39.Qb5 {[%clk 00:05:43][%emt 00:00:05]} 39...Qxe5 {[%clk 00:01:24][%emt
00:01:39]} 40.Nxf7 {[%clk 00:05:26][%emt 00:00:46]} 40...Kxf7 {[%clk
00:00:59][%emt 00:00:56]} 41.Rxc2 {[%clk 00:05:45][%emt 00:00:11]} 41...Ra1+ 
{[%clk 00:32:13][%emt 00:19:16]} 42.Kh2 {[%clk 00:52:59][%emt 00:03:16]} 
42...Qe1 {[%clk 00:31:55][%emt 00:00:48]} 43.Rc7+ {[%clk 00:47:25][%emt
00:06:04]} 43...Kg8 {[%clk 00:32:04][%emt 00:00:20]} 44.Kh3 {[%clk
00:47:47][%emt 00:00:08]} 44...Qe5 {[%clk 00:25:37][%emt 00:06:57]} 45.Rc8 
{[%clk 00:46:20][%emt 00:01:58]} 45...Qf5+ {[%clk 00:25:22][%emt 00:00:45]} 
46.Kh2 {[%clk 00:45:04][%emt 00:01:45]} 46...g5 {[%clk 00:23:55][%emt 00:01:57]} 
47.Qb2 {[%clk 00:41:20][%emt 00:04:14]} 47...Rb1 {[%clk 00:22:32][%emt
00:01:53]} 0-1

[Event "FIDE Grand Swiss 2023"]
[Site "Villa Marina, Douglas, Isle of Man"]
[Date "2023.11.03"]
[Round "9.15"]
[White "Praggnanandhaa, R"]
[Black "Jumabayev, Rinat"]
[Result "1-0"]
[WhiteElo "2738"]
[BlackElo "2585"]
[EventDate "2023.10.25"]
[ECO "D43"]
[PlyCount "103"]
[BlackFideId "13702661"]
[TimeControl "40/100 + 20/50 + 15 + 30s/move"]
[WhiteFideId "25059530"]

1.d4 {[%clk 01:39:49][%emt 00:01:09]} 1...Nf6 {[%clk 01:40:54][%emt 00:00:07]} 
2.c4 {[%clk 01:40:10][%emt 00:00:08]} 2...e6 {[%clk 01:41:01][%emt 00:00:25]} 
3.Nf3 {[%clk 01:40:25][%emt 00:00:14]} 3...d5 {[%clk 01:41:25][%emt 00:00:07]} 
4.Nc3 {[%clk 01:40:41][%emt 00:00:13]} 4...c6 {[%clk 01:41:47][%emt 00:00:08]} 
5.Bg5 {[%clk 01:39:59][%emt 00:01:11]} 5...Nbd7 {[%clk 01:41:37][%emt 00:00:41]} 
6.cxd5 {[%clk 01:39:40][%emt 00:00:50]} 6...exd5 {[%clk 01:42:00][%emt
00:00:06]} 7.e3 {[%clk 01:39:34][%emt 00:00:35]} 7...Be7 {[%clk 01:41:14][%emt
00:01:17]} 8.Bd3 {[%clk 01:38:36][%emt 00:01:27]} 8...h6 {[%clk 01:35:44][%emt
00:06:02]} 9.Bf4 {[%clk 01:35:19][%emt 00:03:46]} 9...Nh5 {[%clk 01:07:39][%emt
00:28:35]} 10.Be5 {[%clk 01:34:34][%emt 00:01:15]} 10...Nxe5 {[%clk
01:00:47][%emt 00:07:22]} 11.Nxe5 {[%clk 01:32:58][%emt 00:02:06]} 11...Nf6 
{[%clk 01:00:51][%emt 00:00:27]} 12.f4 {[%clk 01:31:44][%emt 00:01:42]} 
12...Nd7 {[%clk 00:47:39][%emt 00:13:43]} 13.O-O {[%clk 01:27:13][%emt
00:05:01]} 13...Nxe5 {[%clk 00:44:34][%emt 00:03:35]} 14.fxe5 {[%clk
01:27:17][%emt 00:00:26]} 14...Bg5 {[%clk 00:32:44][%emt 00:12:20]} 15.Kh1 
{[%clk 01:20:18][%emt 00:07:29]} 15...Be6 {[%clk 00:31:35][%emt 00:01:39]} 
16.Qd2 {[%clk 01:14:01][%emt 00:06:48]} 16...Qe7 {[%clk 00:28:37][%emt
00:03:28]} 17.Ne2 {[%clk 01:06:15][%emt 00:08:15]} 17...O-O {[%clk
00:18:35][%emt 00:10:33]} 18.Bc2 {[%clk 01:00:42][%emt 00:06:02]} 18...c5 
{[%clk 00:16:58][%emt 00:02:07]} 19.Nf4 {[%clk 00:58:30][%emt 00:02:42]} 
19...cxd4 {[%clk 00:13:20][%emt 00:04:08]} 20.exd4 {[%clk 00:56:15][%emt
00:02:46]} 20...Rac8 {[%clk 00:13:41][%emt 00:00:09]} 21.Rf2 {[%clk
00:50:00][%emt 00:06:44]} 21...Rc6 {[%clk 00:12:46][%emt 00:01:25]} 22.Raf1 
{[%clk 00:43:40][%emt 00:06:50]} 22...Rfc8 {[%clk 00:07:06][%emt 00:06:10]} 
23.Qd3 {[%clk 00:34:38][%emt 00:09:32]} 23...g6 {[%clk 00:07:35][%emt 00:00:02]} 
24.Nxe6 {[%clk 00:33:33][%emt 00:01:35]} 24...Qxe6 {[%clk 00:07:52][%emt
00:00:12]} 25.Bd1 {[%clk 00:32:17][%emt 00:01:46]} 25...R8c7 {[%clk
00:07:16][%emt 00:01:06]} 26.Qg3 {[%clk 00:30:29][%emt 00:02:17]} 26...Rc1 
{[%clk 00:03:47][%emt 00:04:01]} 27.h4 {[%clk 00:28:47][%emt 00:02:12]} 
27...Bd8 {[%clk 00:04:16][%emt 00:00:01]} 28.Kh2 {[%clk 00:28:01][%emt
00:01:15]} 28...Kg7 {[%clk 00:01:16][%emt 00:03:30]} 29.Rf4 {[%clk
00:20:31][%emt 00:08:01]} 29...a6 {[%clk 00:00:50][%emt 00:00:56]} 30.Qe3 
{[%clk 00:19:23]} 30...h5 {[%clk 00:00:43][%emt 00:00:38]} 31.Bg4 {[%clk
00:16:04][%emt 00:03:49]} 31...Qc6 {[%clk 00:01:06][%emt 00:00:07]} 32.Bd7 
{[%clk 00:15:22][%emt 00:01:12]} 32...Rxf1 {[%clk 00:00:54][%emt 00:00:41]} 
33.Bxc6 {[%clk 00:15:47][%emt 00:00:06]} 33...Rxf4 {[%clk 00:01:16][%emt
00:00:07]} 34.Qxf4 {[%clk 00:16:13][%emt 00:00:04]} 34...bxc6 {[%clk
00:01:16][%emt 00:00:30]} 35.Kh3 {[%clk 00:14:46][%emt 00:01:58]} 35...Rb7 
{[%clk 00:00:53][%emt 00:00:53]} 36.b3 {[%clk 00:14:01][%emt 00:01:15]} 
36...Be7 {[%clk 00:00:54][%emt 00:00:29]} 37.g4 {[%clk 00:12:06][%emt 00:02:23]} 
37...hxg4+ {[%clk 00:01:21][%emt 00:00:05]} 38.Qxg4 {[%clk 00:12:32][%emt
00:00:03]} 38...Rb4 {[%clk 00:00:41][%emt 00:01:10]} 39.h5 {[%clk 00:12:07][%emt
00:00:55]} 39...c5 {[%clk 00:00:33][%emt 00:00:39]} 40.hxg6 {[%clk
00:11:31][%emt 00:01:06]} 40...Rxd4 {[%clk 00:00:33][%emt 00:00:30]} 41.Qd7 
{[%clk 00:11:43][%emt 00:00:17]} 41...Rh4+ {[%clk 00:47:26][%emt 00:03:36]} 
42.Kg3 {[%clk 01:00:34][%emt 00:01:40]} 42...Rh6 {[%clk 00:47:07][%emt
00:00:19]} 43.Qxe7 {[%clk 01:00:52][%emt 00:00:12]} 43...Rxg6+ {[%clk
00:48:05][%emt 00:00:02]} 44.Kf4 {[%clk 01:01:08][%emt 00:00:13]} 44...c4 
{[%clk 00:48:32][%emt 00:00:04]} 45.Qc5 {[%clk 01:00:45][%emt 00:00:53]} 
45...cxb3 {[%clk 00:48:56][%emt 00:00:06]} 46.axb3 {[%clk 01:01:13][%emt
00:00:03]} 46...Re6 {[%clk 00:48:26][%emt 00:00:59]} 47.Qxd5 {[%emt 00:01:59]} 
47...Rh6 {[%clk 00:48:42]} 48.Ke4 {[%clk 00:59:23][%emt 00:01:05]} 48...Rh1 
{[%clk 00:48:47][%emt 00:00:24]} 49.Qc5 {[%clk 00:57:51][%emt 00:02:02]} 
49...Rh6 {[%clk 00:48:58][%emt 00:00:18]} 50.Kd5 {[%clk 00:56:35][%emt
00:01:47]} 50...Re6 {[%clk 00:49:05][%emt 00:00:23]} 51.Kc4 {[%clk
00:55:41][%emt 00:01:24]} 51...Kg6 {[%clk 00:49:21][%emt 00:00:13]} 52.Qc7 
{[%clk 00:55:51][%emt 00:00:21]} 1-0

[Event "FIDE Grand Swiss 2023"]
[Site "Villa Marina, Douglas, Isle of Man"]
[Date "2023.11.03"]
[Round "9.16"]
[White "Duda, Jan-Krzysztof"]
[Black "Zhalmakhanov, Ramazan"]
[Result "1-0"]
[WhiteElo "2726"]
[BlackElo "2447"]
[EventDate "2023.10.25"]
[ECO "C50"]
[PlyCount "49"]
[BlackFideId "13706357"]
[TimeControl "40/100 + 20/50 + 15 + 30s/move"]
[WhiteFideId "1170546"]

1.e4 {[%clk 01:40:58][%emt 00:00:01]} 1...e5 {[%clk 01:40:49][%emt 00:00:11]} 
2.Nf3 {[%clk 01:41:23][%emt 00:00:05]} 2...Nc6 {[%clk 01:41:11][%emt 00:00:08]} 
3.Bc4 {[%clk 01:41:49][%emt 00:00:05]} 3...Bc5 {[%clk 01:41:27][%emt 00:00:13]} 
4.O-O {[%clk 01:41:39][%emt 00:00:40]} 4...Nf6 {[%clk 01:39:58][%emt 00:01:58]} 
5.d3 {[%clk 01:42:04][%emt 00:00:06]} 5...h6 {[%clk 01:39:08][%emt 00:01:20]} 
6.c3 {[%clk 01:42:20][%emt 00:00:14]} 6...O-O {[%clk 01:39:17][%emt 00:00:21]} 
7.Re1 {[%clk 01:41:35][%emt 00:01:15]} 7...d6 {[%clk 01:34:04][%emt 00:05:43]} 
8.Nbd2 {[%clk 01:41:42][%emt 00:00:22]} 8...a5 {[%clk 01:33:13][%emt 00:01:22]} 
9.Nf1 {[%clk 01:42:06][%emt 00:00:06]} 9...Bb6 {[%clk 01:24:54][%emt 00:08:48]} 
10.Ng3 {[%clk 01:41:38][%emt 00:00:59]} 10...Ne7 {[%clk 01:25:04][%emt
00:00:19]} 11.Bb3 {[%clk 01:39:23][%emt 00:02:46]} 11...Ng6 {[%clk
01:24:35][%emt 00:00:58]} 12.h3 {[%clk 01:39:48][%emt 00:00:05]} 12...c5 {[%clk
01:23:43][%emt 00:01:22]} 13.Nf5 {[%clk 01:25:40][%emt 00:14:39]} 13...d5 
{[%clk 01:12:39][%emt 00:11:35]} 14.Ng3 {[%clk 01:17:50][%emt 00:08:19]} 
14...Bc7 {[%clk 00:59:15][%emt 00:13:54]} 15.exd5 {[%clk 01:12:42][%emt
00:05:38]} 15...Nxd5 {[%clk 00:59:34][%emt 00:00:11]} 16.d4 {[%clk
01:02:15][%emt 00:10:58]} 16...cxd4 {[%clk 00:47:46][%emt 00:12:18]} 17.cxd4 
{[%clk 01:02:35][%emt 00:00:10]} 17...Ndf4 {[%clk 00:47:44][%emt 00:00:31]} 
18.Nxe5 {[%clk 00:59:37][%emt 00:03:28]} 18...Bxe5 {[%clk 00:47:01][%emt
00:01:13]} 19.dxe5 {[%clk 01:00:00][%emt 00:00:07]} 19...Nd3 {[%clk
00:47:11][%emt 00:00:20]} 20.Re4 {[%clk 00:59:04][%emt 00:01:26]} 20...Ndxe5 
{[%clk 00:45:24][%emt 00:02:16]} 21.Qe2 {[%clk 00:55:08][%emt 00:04:27]} 
21...Qd6 {[%clk 00:39:58][%emt 00:05:55]} 22.Be3 {[%clk 00:52:19][%emt
00:03:20]} 22...Qd3 {[%clk 00:34:45][%emt 00:05:44]} 23.Qh5 {[%clk
00:52:09][%emt 00:00:39]} 23...Qb5 {[%clk 00:34:47][%emt 00:00:27]} 24.Ba4 
{[%clk 00:47:17][%emt 00:05:23]} 24...Qd5 {[%clk 00:33:08][%emt 00:02:08]} 
25.f4 {[%clk 00:47:01][%emt 00:00:48]} 1-0

[Event "FIDE Grand Swiss 2023"]
[Site "Villa Marina, Douglas, Isle of Man"]
[Date "2023.11.03"]
[Round "9.17"]
[White "Saric, Ivan"]
[Black "Yu, Yangyi"]
[Result "1/2-1/2"]
[WhiteElo "2647"]
[BlackElo "2720"]
[EventDate "2023.10.25"]
[ECO "C42"]
[PlyCount "84"]
[BlackClock "00:30:50"]
[BlackFideId "8603820"]
[TimeControl "40/100 + 20/50 + 15 + 30s/move"]
[WhiteClock "00:15:46"]
[WhiteFideId "14508150"]

1.e4 {[%clk 01:40:58][%emt 00:00:02]} 1...e5 {[%clk 01:40:52][%emt 00:00:08]} 
2.Nf3 {[%clk 01:41:24][%emt 00:00:05]} 2...Nf6 {[%clk 01:41:13][%emt 00:00:08]} 
3.Nxe5 {[%clk 01:41:43][%emt 00:00:12]} 3...d6 {[%clk 01:41:37][%emt 00:00:06]} 
4.Nf3 {[%clk 01:42:10][%emt 00:00:02]} 4...Nxe4 {[%clk 01:41:57][%emt 00:00:10]} 
5.d4 {[%clk 01:42:33][%emt 00:00:08]} 5...d5 {[%clk 01:42:17][%emt 00:00:10]} 
6.Bd3 {[%clk 01:42:59][%emt 00:00:04]} 6...Nc6 {[%clk 01:42:29][%emt 00:00:18]} 
7.O-O {[%clk 01:43:18][%emt 00:00:10]} 7...Be7 {[%clk 01:42:53][%emt 00:00:06]} 
8.Nbd2 {[%clk 01:42:22][%emt 00:01:26]} 8...Bf5 {[%clk 01:42:11][%emt 00:01:12]} 
9.Re1 {[%clk 01:42:44][%emt 00:00:08]} 9...Nxd2 {[%clk 01:42:30][%emt 00:00:11]} 
10.Qxd2 {[%clk 01:43:11][%emt 00:00:03]} 10...Bg6 {[%clk 01:42:47][%emt
00:00:13]} 11.Nh4 {[%clk 01:39:19][%emt 00:04:23]} 11...Bxd3 {[%clk
01:41:19][%emt 00:01:58]} 12.Qxd3 {[%clk 01:39:41][%emt 00:00:08]} 12...O-O 
{[%clk 01:41:40][%emt 00:00:09]} 13.Nf5 {[%clk 01:40:03][%emt 00:00:08]} 
13...Bf6 {[%clk 01:40:57][%emt 00:01:12]} 14.Bf4 {[%clk 01:38:45][%emt
00:01:48]} 14...Re8 {[%clk 01:40:48][%emt 00:00:39]} 15.Rxe8+ {[%clk
01:31:14][%emt 00:08:01]} 15...Qxe8 {[%clk 01:41:17][%emt 00:00:02]} 16.c3 
{[%clk 01:31:29][%emt 00:00:15]} 16...Qd7 {[%clk 01:37:09][%emt 00:04:38]} 
17.Re1 {[%clk 01:25:29][%emt 00:06:29]} 17...Ne7 {[%clk 01:36:23][%emt
00:01:16]} 18.Ng3 {[%clk 01:22:32][%emt 00:03:27]} 18...Ng6 {[%clk
01:35:30][%emt 00:01:23]} 19.Nh5 {[%clk 01:14:25][%emt 00:08:37]} 19...Be7 
{[%clk 01:30:29][%emt 00:05:31]} 20.h3 {[%clk 01:14:22][%emt 00:00:33]} 
20...Nxf4 {[%clk 01:23:30][%emt 00:07:29]} 21.Nxf4 {[%clk 01:14:48][%emt
00:00:05]} 21...c6 {[%clk 01:23:11][%emt 00:00:49]} 22.Qe2 {[%clk 01:08:28][%emt
00:06:50]} 22...Bd6 {[%clk 01:21:27][%emt 00:02:12]} 23.Nd3 {[%clk
01:08:53][%emt 00:00:06]} 23...h6 {[%clk 01:17:51][%emt 00:04:06]} 24.h4 {[%clk
01:07:25][%emt 00:01:58]} 24...Rd8 {[%clk 01:10:46][%emt 00:07:34]} 25.g3 
{[%clk 01:06:36][%emt 00:01:20]} 25...Kf8 {[%clk 01:09:56][%emt 00:01:21]} 
26.Kg2 {[%clk 01:02:19][%emt 00:04:46]} 26...Re8 {[%clk 01:07:06][%emt
00:03:21]} 27.Qxe8+ {[%clk 01:02:38][%emt 00:00:12]} 27...Qxe8 {[%clk
01:07:34][%emt 00:00:01]} 28.Rxe8+ {[%clk 01:03:01][%emt 00:00:06]} 28...Kxe8 
{[%clk 01:07:45][%emt 00:00:18]} 29.h5 {[%clk 01:02:35][%emt 00:00:57]} 
29...Ke7 {[%clk 01:07:47][%emt 00:00:29]} 30.f4 {[%clk 01:01:37][%emt 00:01:27]} 
30...g6 {[%clk 01:04:28][%emt 00:03:50]} 31.Kh3 {[%clk 00:56:55][%emt 00:05:11]} 
31...Ke6 {[%clk 01:03:50][%emt 00:01:08]} 32.Kg4 {[%clk 00:56:36][%emt
00:00:49]} 32...Be7 {[%clk 01:01:48][%emt 00:02:32]} 33.hxg6 {[%clk
00:49:10][%emt 00:07:56]} 33...fxg6 {[%clk 01:02:15][%emt 00:00:02]} 34.Kf3 
{[%clk 00:49:13][%emt 00:00:27]} 34...Bd6 {[%clk 01:00:18][%emt 00:02:28]} 
35.g4 {[%clk 00:47:46][%emt 00:01:56]} 35...Kf6 {[%clk 00:56:56][%emt 00:03:52]} 
36.a4 {[%clk 00:43:57][%emt 00:04:20]} 36...a5 {[%clk 00:51:58][%emt 00:05:28]} 
37.Nf2 {[%clk 00:19:21][%emt 00:25:05]} 37...b5 {[%clk 00:42:31][%emt 00:09:57]} 
38.axb5 {[%clk 00:18:39][%emt 00:01:12]} 38...cxb5 {[%clk 00:41:37][%emt
00:01:24]} 39.Nd1 {[%clk 00:19:02][%emt 00:00:08]} 39...Ke6 {[%clk
00:38:45][%emt 00:03:21]} 40.Ne3 {[%clk 00:19:22][%emt 00:00:10]} 40...Be7 
{[%clk 00:39:03][%emt 00:00:13]} 41.Nc2 {[%clk 00:17:23][%emt 00:02:29]} 
41...a4 {[%clk 00:34:10][%emt 00:05:23]} 42.Nb4 {[%clk 00:15:46][%emt 00:02:06]} 
42...Bxb4 {[%clk 00:30:50] [%emt 00:03:19]} 1/2-1/2

[Event "FIDE Grand Swiss 2023"]
[Site "Villa Marina, Douglas, Isle of Man"]
[Date "2023.11.03"]
[Round "9.18"]
[White "Gledura, Benjamin"]
[Black "Abdusattorov, Nodirbek"]
[Result "0-1"]
[WhiteElo "2633"]
[BlackElo "2716"]
[EventDate "2023.10.25"]
[ECO "D34"]
[PlyCount "80"]
[BlackFideId "14204118"]
[TimeControl "40/100 + 20/50 + 15 + 30s/move"]
[WhiteFideId "712779"]

1.d4 {[%clk 01:40:56][%emt 00:00:03]} 1...d5 {[%clk 01:40:38][%emt 00:00:23]} 
2.c4 {[%clk 01:41:11][%emt 00:00:15]} 2...e6 {[%clk 01:40:53][%emt 00:00:16]} 
3.Nc3 {[%clk 01:41:22][%emt 00:00:18]} 3...c5 {[%clk 01:40:48][%emt 00:00:36]} 
4.cxd5 {[%clk 01:41:09][%emt 00:00:43]} 4...exd5 {[%clk 01:41:04][%emt
00:00:13]} 5.Nf3 {[%clk 01:40:49][%emt 00:00:50]} 5...Nf6 {[%clk 01:41:29][%emt
00:00:06]} 6.g3 {[%clk 01:36:54][%emt 00:04:24]} 6...Nc6 {[%clk 01:41:42][%emt
00:00:17]} 7.Bg2 {[%clk 01:37:08][%emt 00:00:16]} 7...Be7 {[%clk 01:42:07][%emt
00:00:05]} 8.O-O {[%clk 01:36:32][%emt 00:01:06]} 8...O-O {[%clk 01:42:30][%emt
00:00:07]} 9.dxc5 {[%clk 01:33:35][%emt 00:03:26]} 9...Bxc5 {[%clk
01:42:36][%emt 00:00:25]} 10.e3 {[%clk 01:24:56][%emt 00:09:09]} 10...b6 {[%clk
01:33:06][%emt 00:10:00]} 11.a3 {[%clk 01:08:55][%emt 00:16:31]} 11...a5 {[%clk
01:32:16][%emt 00:01:20]} 12.Qa4 {[%clk 01:05:21][%emt 00:04:04]} 12...Bd7 
{[%clk 01:23:01][%emt 00:09:45]} 13.Qc2 {[%clk 01:05:20][%emt 00:00:31]} 
13...Rc8 {[%clk 01:16:05][%emt 00:07:25]} 14.Rd1 {[%clk 01:04:03][%emt
00:01:48]} 14...Be6 {[%clk 01:10:34][%emt 00:06:02]} 15.Ng5 {[%clk
00:54:32][%emt 00:10:00]} 15...h6 {[%clk 01:10:44][%emt 00:00:20]} 16.Nxe6 
{[%clk 00:53:28][%emt 00:01:34]} 16...fxe6 {[%clk 01:11:09][%emt 00:00:05]} 
17.Bd2 {[%clk 00:51:59][%emt 00:01:59]} 17...Ng4 {[%clk 01:00:45][%emt
00:10:54]} 18.Be1 {[%clk 00:49:45][%emt 00:02:44]} 18...Qg5 {[%clk
00:47:06][%emt 00:14:09]} 19.Qe2 {[%clk 00:46:00][%emt 00:04:14]} 19...Nce5 
{[%clk 00:46:54][%emt 00:00:42]} 20.Rab1 {[%clk 00:21:51][%emt 00:24:40]} 
20...Kh8 {[%clk 00:29:13][%emt 00:18:10]} 21.b4 {[%clk 00:17:03][%emt 00:05:19]} 
21...axb4 {[%clk 00:26:57][%emt 00:02:46]} 22.axb4 {[%clk 00:17:31][%emt
00:00:02]} 22...Nxf2 {[%clk 00:26:10][%emt 00:01:16]} 23.bxc5 {[%clk
00:17:55][%emt 00:00:06]} 23...Nxd1 {[%clk 00:26:36][%emt 00:00:04]} 24.Nxd1 
{[%clk 00:18:00][%emt 00:00:25]} 24...bxc5 {[%clk 00:27:02][%emt 00:00:04]} 
25.Bc3 {[%clk 00:17:48][%emt 00:00:43]} 25...Rb8 {[%clk 00:23:54][%emt
00:03:38]} 26.Ra1 {[%clk 00:17:50][%emt 00:00:27]} 26...Rb3 {[%clk
00:21:04][%emt 00:03:20]} 27.Qc2 {[%clk 00:16:40][%emt 00:01:41]} 27...c4 
{[%clk 00:21:07][%emt 00:00:27]} 28.Ra7 {[%clk 00:13:50][%emt 00:03:20]} 
28...Rfb8 {[%clk 00:21:28][%emt 00:00:09]} 29.Bf1 {[%clk 00:11:15][%emt
00:03:04]} 29...d4 {[%clk 00:14:44][%emt 00:07:14]} 30.exd4 {[%clk
00:10:03][%emt 00:01:42]} 30...Nf3+ {[%clk 00:15:06][%emt 00:00:09]} 31.Kh1 
{[%clk 00:10:17][%emt 00:00:16]} 31...Rb1 {[%clk 00:13:19][%emt 00:02:17]} 
32.Ra1 {[%clk 00:05:26][%emt 00:05:20]} 32...Rxa1 {[%clk 00:12:53][%emt
00:00:56]} 33.Bxa1 {[%clk 00:05:55][%emt 00:00:01]} 33...Qh5 {[%clk
00:05:13][%emt 00:08:10]} 34.h3 {[%clk 00:04:15][%emt 00:02:10]} 34...Ne1 
{[%clk 00:05:02][%emt 00:00:43]} 35.Qe2 {[%clk 00:02:04][%emt 00:02:41]} 
35...Qd5+ {[%clk 00:05:25][%emt 00:00:06]} 36.Kg1 {[%clk 00:02:07][%emt
00:00:27]} 36...Nf3+ {[%clk 00:05:39][%emt 00:00:16]} 37.Kf2 {[%clk
00:02:27][%emt 00:00:10]} 37...Rf8 {[%clk 00:04:44][%emt 00:01:26]} 38.Bg2 
{[%clk 00:01:48][%emt 00:01:09]} 38...c3 {[%clk 00:03:05][%emt 00:02:08]} 
39.Ne3 {[%clk 00:00:34][%emt 00:01:44]} 39...Nxd4+ {[%clk 00:03:16][%emt
00:00:20]} 40.Ke1 {[%clk 00:00:56][%emt 00:00:07]} 40...Qa5 {[%clk
00:03:05][%emt 00:00:41]} 0-1